bitfinex-derivatives/quotes_BTCF0:USTF0_20250424
["timestamp","ask_amount","ask_price","bid_price","bid_amount"]
[1745531578623,0.442,93450.0,93449.0,1.08148738]
[1745531580323,0.442,93450.0,93449.0,1.07948738]
[1745531580529,0.442,93450.0,93449.0,1.08348738]
[1745531581130,0.442,93450.0,93449.0,1.08448738]
[1745531581725,0.442,93450.0,93449.0,1.23888738]
[1745531581930,0.442,93450.0,93449.0,1.23988738]
[1745531582235,0.442,93450.0,93449.0,0.27731738]
[1745531582623,0.442,93450.0,93449.0,0.1119652]
[1745531583226,0.442,93450.0,93449.0,0.2663652]
[1745531583425,0.442,93450.0,93449.0,0.2573652]
[1745531583731,0.442,93450.0,93449.0,0.2643652]
[1745531583927,0.549008,93450.0,93449.0,0.1099652]
[1745531584124,0.442,93450.0,93449.0,0.1079652]
[1745531584522,0.549008,93450.0,93449.0,0.1079652]
[1745531584721,0.549008,93450.0,93449.0,0.1039652]
[1745531584923,0.549008,93450.0,93449.0,0.1049652]
[1745531585128,0.549008,93450.0,93449.0,0.1039652]
[1745531586424,0.549008,93450.0,93447.0,0.1745669]
[1745531586625,0.3234,93449.0,93447.0,0.0676]
[1745531586826,0.5934,93449.0,93447.0,0.0676]
[1745531587123,0.7654,93449.0,93448.0,0.1069664]
[1745531587624,0.872412,93449.0,93448.0,0.1069664]
[1745531587824,0.872412,93449.0,93447.0,0.0676]
[1745531588019,0.1069664,93448.0,93447.0,0.0686]
[1745531588224,0.5443664,93448.0,93447.0,0.0686]
[1745531588427,0.1069706,93445.0,93443.0,0.3608]
[1745531588633,0.429871,93444.0,93443.0,0.4677721]
[1745531588823,0.4702,93444.0,93443.0,0.4677721]
[1745531589237,0.6422,93444.0,93443.0,0.4677721]
[1745531589435,0.6422,93444.0,93443.0,0.6360721]
[1745531589637,0.6422,93444.0,93443.0,0.7921721]
[1745531590728,0.6422,93444.0,93443.0,0.7941721]
[1745531591133,0.6422,93444.0,93443.0,0.7951721]
[1745531592737,0.6422,93444.0,93443.0,0.4707721]
[1745531593638,0.6422,93444.0,93443.0,0.7922721]
[1745531594840,0.749171,93444.0,93443.0,0.7922721]
[1745531597343,0.6422,93444.0,93443.0,0.7922721]
[1745531597546,0.749171,93444.0,93443.0,0.7922721]
[1745531599755,0.6422,93444.0,93443.0,0.7922721]
[1745531604952,0.482,93444.0,93443.0,0.7922721]
[1745531605348,0.482,93444.0,93443.0,1.2195321]
[1745531605656,0.482,93444.0,93443.0,1.7548421]
[1745531609466,0.482,93444.0,93443.0,1.3940421]
[1745531609953,0.482,93444.0,93443.0,1.5607421]
[1745531611153,0.31,93444.0,93443.0,1.5607421]
[1745531619167,0.482,93444.0,93443.0,1.5607421]
[1745531623670,0.482,93444.0,93443.0,1.3940421]
[1745531628868,0.482,93444.0,93443.0,1.7548421]
[1745531638584,0.482,93444.0,93443.0,1.8223621]
[1745531639095,0.31,93444.0,93443.0,1.8223621]
[1745531639283,0.2414,93444.0,93443.0,1.8223621]
[1745531639686,0.2414,93444.0,93443.0,1.9873621]
[1745531639982,0.1335006,93444.0,93443.0,1.9873621]
[1745531640182,0.0542139,93444.0,93443.0,1.9873621]
[1745531640582,0.1627,93457.0,93456.0,0.1069572]
[1745531640784,0.4227,93457.0,93456.0,1.4978472]
[1745531641177,0.5947,93457.0,93456.0,1.4978472]
[1745531641377,0.5947,93457.0,93456.0,1.8159472]
[1745531641778,0.5957,93457.0,93456.0,1.8159472]
[1745531653195,0.4237,93457.0,93456.0,1.8159472]
[1745531653693,0.4237,93457.0,93456.0,1.2806372]
[1745531653997,0.5779,93457.0,93456.0,1.8159472]
[1745531669300,0.5779,93457.0,93456.0,1.9879472]
[1745531676809,0.4237,93457.0,93456.0,1.9879472]
[1745531688115,0.4237,93457.0,93456.0,1.8159472]
[1745531690316,0.4237,93457.0,93456.0,1.9879472]
[1745531702835,0.4237,93457.0,93456.0,1.4526372]
[1745531708145,0.4237,93457.0,93456.0,1.2806372]
[1745531708640,0.4237,93457.0,93456.0,1.8159472]
[1745531709545,0.5844,93457.0,93456.0,1.8159472]
[1745531710046,0.5844,93457.0,93456.0,1.81590409]
[1745531714740,0.5844,93457.0,93456.0,1.45510409]
[1745531714941,0.5844,93457.0,93456.0,1.81590409]
[1745531716145,0.5844,93457.0,93456.0,1.38864409]
[1745531720853,0.5844,93457.0,93456.0,0.85333409]
[1745531738663,0.5844,93457.0,93456.0,1.38864409]
[1745531741167,0.5844,93457.0,93456.0,0.85333409]
[1745531745169,0.7564,93457.0,93456.0,0.85333409]
[1745531751064,0.5844,93457.0,93456.0,0.85333409]
[1745531762676,0.5844,93457.0,93456.0,0.49253409]
[1745531794418,0.5844,93457.0,93456.0,0.42501409]
[1745531794716,0.5844,93457.0,93456.0,0.49229409]
[1745531818331,0.5844,93457.0,93456.0,0.42501409]
[1745531818537,0.5844,93457.0,93456.0,0.49229409]
[1745531821137,0.5844,93457.0,93456.0,0.49225098]
[1745531829548,0.5844,93457.0,93456.0,0.42497098]
[1745531829749,0.5844,93457.0,93456.0,0.49221098]
[1745531878105,0.5844,93457.0,93456.0,0.66421098]
[1745531879098,0.5844,93457.0,93456.0,0.49221098]
[1745531881109,0.5844,93457.0,93456.0,0.66421098]
[1745531882115,0.5844,93457.0,93456.0,0.49221098]
[1745531885505,0.261,93457.0,93456.0,1.45478098]
[1745531886110,0.261,93457.0,93456.0,1.62678098]
[1745531889215,0.261,93457.0,93456.0,1.73378098]
[1745531892916,0.261,93457.0,93456.0,1.62678098]
[1745531893109,0.261,93457.0,93456.0,1.73378098]
[1745531899020,0.261,93457.0,93456.0,1.62678098]
[1745531920730,0.261,93457.0,93456.0,1.19952098]
[1745531920936,0.261,93457.0,93456.0,1.62678098]
[1745531924927,0.261,93457.0,93456.0,1.62662098]
[1745531935545,0.261,93457.0,93456.0,1.62657787]
[1745531937145,1.00832752,93460.0,93456.0,0.610658]
[1745531937345,1.10832752,93460.0,93459.0,1.0695238]
[1745531937639,1.10805752,93460.0,93459.0,1.0695238]
[1745531938139,1.10805752,93460.0,93459.0,1.2415238]
[1745531938345,1.10905752,93460.0,93459.0,1.54880577]
[1745531940035,1.10805752,93460.0,93459.0,1.54880577]
[1745531940946,1.10805752,93460.0,93459.0,1.55180577]
[1745531941444,1.10805752,93460.0,93459.0,1.55380577]
[1745531943448,1.26375752,93460.0,93459.0,1.55380577]
[1745531943652,0.00027,93463.0,93462.0,0.1069504]
[1745531943843,0.28027,93463.0,93462.0,1.4303204]
[1745531944147,0.28,93463.0,93462.0,1.9216204]
[1745531944942,0.28,93463.0,93462.0,1.9246204]
[1745531945336,0.28811226,93463.0,93462.0,1.9246204]
[1745531975980,0.28811226,93463.0,93462.0,1.4973604]
[1745531976783,0.28811226,93463.0,93462.0,1.9246204]
[1745531983685,0.28811226,93463.0,93462.0,1.3893104]
[1745531983878,0.28811226,93463.0,93462.0,1.9246204]
[1745531985284,0.28811226,93463.0,93462.0,1.9915804]
[1745531985783,0.25565366,93463.0,93462.0,1.9915804]
[1745531985970,0.22502416,93463.0,93462.0,1.9915804]
[1745531988088,0.19215796,93463.0,93462.0,1.9915804]
[1745531990978,0.19215796,93463.0,93462.0,1.5643204]
[1745531991374,0.19215796,93463.0,93462.0,1.9915804]
[1745531991680,0.19215796,93463.0,93462.0,1.5643204]
[1745531997790,0.19215796,93463.0,93462.0,1.9915804]
[1745532000495,2e-08,93467.0,93466.0,1.0695158]
[1745532000685,0.14556012,93467.0,93466.0,1.4303158]
[1745532000882,0.00894664,93477.0,93475.0,0.96257]
[1745532001195,0.31894664,93477.0,93476.0,1.8126643]
[1745532001394,0.31894664,93477.0,93476.0,1.9749643]
[1745532001595,0.31894664,93477.0,93476.0,1.8126643]
[1745532002189,0.31894664,93477.0,93476.0,1.9846643]
[1745532003697,0.47264664,93477.0,93476.0,1.9846643]
[1745532004399,0.63254664,93477.0,93476.0,1.9846643]
[1745532006399,0.63254664,93477.0,93476.0,1.9177043]
[1745532006591,0.63254664,93477.0,93476.0,1.9846243]
[1745532010294,0.63254664,93477.0,93476.0,1.9177043]
[1745532010486,0.63254664,93477.0,93476.0,0.6397343]
[1745532010692,0.78654664,93477.0,93476.0,0.7066543]
[1745532011095,0.78654664,93477.0,93476.0,0.5346543]
[1745532019696,0.78654664,93477.0,93476.0,0.6970543]
[1745532026808,0.78654664,93477.0,93476.0,0.8571543]
[1745532029410,0.63254664,93477.0,93476.0,0.8571543]
[1745532031610,0.31894664,93477.0,93476.0,1.8197243]
[1745532031907,0.3452,93496.0,93477.0,0.96257]
[1745532032114,0.0052,93496.0,93495.0,0.1069126]
[1745532032415,0.0052,93496.0,93495.0,0.9618926]
[1745532032416,0.1652,93496.0,93495.0,0.9618926]
[1745532032713,0.1652,93496.0,93495.0,1.50772471]
[1745532034315,0.17302903,93496.0,93495.0,1.50872471]
[1745532034799,0.17302903,93496.0,93495.0,1.44180471]
[1745532034998,0.17302903,93496.0,93495.0,1.50872471]
[1745532037113,0.17302903,93496.0,93495.0,1.44180471]
[1745532037313,0.17302903,93496.0,93495.0,1.50864471]
[1745532040218,0.17302903,93496.0,93495.0,1.68064471]
[1745532041715,3e-08,93496.0,93495.0,1.78760071]
[1745532041908,0.00156213,93500.0,93499.0,1.069478]
[1745532042110,0.24190753,93500.0,93499.0,1.069478]
[1745532042413,0.10010693,93500.0,93499.0,1.241478]
[1745532043414,0.158,93518.0,93500.0,0.1069069]
[1745532043619,0.52,93501.0,93500.0,1.7350769]
[1745532044207,0.52,93501.0,93500.0,1.9070769]
[1745532044515,0.4468721,93501.0,93500.0,1.9070769]
[1745532045709,0.4468721,93501.0,93500.0,1.9080769]
[1745532047519,0.45472014,93501.0,93500.0,1.9080769]
[1745532057624,0.45472014,93501.0,93500.0,2.2688769]
[1745532060320,0.45472014,93501.0,93500.0,2.3357169]
[1745532066330,0.45472014,93501.0,93500.0,2.2688769]
[1745532066538,0.48472014,93501.0,93500.0,0.8946]
[1745532066739,0.84167214,93501.0,93499.0,0.06684]
[1745532067034,0.4705,93500.0,93489.0,0.1069188]
[1745532067233,0.3608,93496.0,93490.0,0.1737583]
[1745532067534,0.3123,93495.0,93490.0,0.06684]
[1745532067733,0.70926001,93495.0,93493.0,0.1069143]
[1745532067934,0.10696001,93494.0,93493.0,0.1069143]
[1745532068138,0.36696001,93494.0,93493.0,0.1069143]
[1745532068337,0.92316001,93494.0,93493.0,0.1069143]
[1745532069335,0.67316001,93494.0,93493.0,0.1069143]
[1745532069732,0.67316001,93494.0,93493.0,0.1089143]
[1745532070629,0.67316001,93494.0,93493.0,0.1109143]
[1745532071030,0.5662,93494.0,93493.0,0.1109143]
[1745532071229,0.5662,93494.0,93493.0,0.2829143]
[1745532071626,0.5662,93494.0,93493.0,1.4014843]
[1745532071941,0.26,93494.0,93493.0,1.4014843]
[1745532073833,0.25562001,93494.0,93493.0,1.4014843]
[1745532075245,0.18472014,93501.0,93500.0,0.1069069]
[1745532075444,0.31472014,93501.0,93500.0,0.4677069]
[1745532076138,0.31472014,93501.0,93500.0,0.7822069]
[1745532076343,0.31472014,93501.0,93500.0,0.7832069]
[1745532076544,0.27,93520.0,93505.0,0.96257]
[1745532076844,0.27904555,93507.0,93506.0,0.4882]
[1745532077140,0.2711,93507.0,93506.0,0.4882]
[1745532078443,2e-08,93507.0,93506.0,1.45077]
[1745532078841,0.16416831,93512.0,93511.0,0.1068943]
[1745532079037,0.41210472,93512.0,93511.0,1.4302643]
[1745532079638,0.41210472,93512.0,93511.0,1.7367643]
[1745532080240,0.41210472,93512.0,93511.0,1.9087643]
[1745532082250,0.41210472,93512.0,93511.0,1.9107643]
[1745532084544,0.41210472,93512.0,93511.0,1.0149943]
[1745532084743,0.41210472,93512.0,93511.0,0.8574943]
[1745532085153,0.41210472,93512.0,93511.0,0.6854943]
[1745532091254,0.58410472,93512.0,93511.0,0.6854943]
[1745532092854,0.58410472,93512.0,93511.0,0.6186943]
[1745532093156,0.58410472,93512.0,93511.0,0.6854943]
[1745532100256,0.41210472,93512.0,93511.0,0.6854943]
[1745532100961,0.41210472,93512.0,93511.0,1.1127543]
[1745532103659,0.41210472,93512.0,93511.0,1.2208043]
[1745532103865,0.41210472,93512.0,93511.0,1.6480643]
[1745532107765,0.41210472,93512.0,93511.0,1.8019643]
[1745532109866,0.41210472,93512.0,93511.0,0.8393943]
[1745532112457,0.41210472,93512.0,93511.0,0.4785943]
[1745532112663,0.76904472,93512.0,93509.0,0.3608]
[1745532112863,0.3608,93510.0,93507.0,0.1068983]
[1745532113064,0.324,93509.0,93508.0,0.1736578]
[1745532113264,0.614,93509.0,93508.0,0.1736578]
[1745532113473,0.720944,93509.0,93508.0,0.1736578]
[1745532114276,0.892944,93509.0,93508.0,0.1736578]
[1745532114474,0.892944,93509.0,93508.0,0.1746578]
[1745532114774,0.892944,93509.0,93508.0,0.1766578]
[1745532117272,0.786,93509.0,93508.0,0.1766578]
[1745532122181,0.892944,93509.0,93508.0,0.1766578]
[1745532126181,1.253744,93509.0,93508.0,0.1766578]
[1745532127978,1.253744,93509.0,93508.0,0.3347578]
[1745532128372,1.253744,93509.0,93508.0,0.2679978]
[1745532128572,1.483744,93509.0,93487.0,0.01069633]
[1745532128779,0.7216,93495.0,93476.0,1e-08]
[1745532128975,0.3608,93480.0,93463.0,0.06676]
[1745532129183,0.3608,93464.0,93463.0,0.06676]
[1745532129479,0.9916,93464.0,93463.0,0.173709]
[1745532129680,0.27,93464.0,93463.0,0.173709]
[1745532129884,0.27,93464.0,93463.0,0.600969]
[1745532130575,0.27,93464.0,93463.0,0.601969]
[1745532131585,0.27,93464.0,93463.0,0.602969]
[1745532131787,0.27,93464.0,93463.0,0.759169]
[1745532131988,0.27,93464.0,93463.0,0.758169]
[1745532132285,0.27,93464.0,93463.0,0.760169]
[1745532132680,0.27,93464.0,93463.0,0.761169]
[1745532132879,0.27810247,93464.0,93463.0,0.761169]
[1745532133183,0.27810247,93464.0,93463.0,0.933169]
[1745532134387,0.38509447,93464.0,93463.0,0.004]
[1745532134575,0.79714257,93464.0,93463.0,0.002]
[1745532134775,0.1069536,93460.0,93458.0,0.1737146]
[1745532135087,0.1529,93459.0,93458.0,0.1069549]
[1745532135287,0.51990001,93459.0,93458.0,0.1069549]
[1745532136085,0.51990001,93459.0,93458.0,0.1099549]
[1745532136281,0.51990001,93459.0,93458.0,0.1129549]
[1745532136482,0.51990001,93459.0,93458.0,0.1767149]
[1745532136778,0.51990001,93459.0,93458.0,0.1797149]
[1745532138984,0.51990001,93459.0,93458.0,0.006]
[1745532139190,0.51990001,93459.0,93450.0,0.06676]
[1745532139386,0.1069575,93456.0,93455.0,0.1069583]
[1745532139688,0.7677575,93456.0,93455.0,0.1069583]
[1745532139991,0.87476151,93456.0,93455.0,0.1069583]
[1745532140186,1.04676151,93456.0,93455.0,0.1069583]
[1745532140691,1.04676151,93456.0,93455.0,0.1089583]
[1745532141584,1.04676151,93456.0,93455.0,0.1119583]
[1745532143289,0.93980401,93456.0,93455.0,0.1119583]
[1745532143585,1.04676121,93456.0,93455.0,0.1119583]
[1745532143790,1.04676121,93456.0,93411.0,0.3608]
[1745532143791,1.15980401,93456.0,93411.0,0.3608]
[1745532144091,1.15980401,93456.0,93429.0,0.106987]
[1745532144092,0.053494,93430.0,93429.0,0.106987]
[1745532144295,0.343494,93430.0,93429.0,0.106987]
[1745532144478,0.757326,93430.0,93429.0,0.106987]
[1745532144687,0.703832,93430.0,93429.0,0.106987]
[1745532144992,0.29,93430.0,93429.0,1.069557]
[1745532145192,0.29,93430.0,93429.0,1.241557]
[1745532145884,0.29,93430.0,93429.0,0.706247]
[1745532146183,0.29,93430.0,93429.0,0.534247]
[1745532146494,0.29,93430.0,93429.0,0.536247]
[1745532146792,0.29,93430.0,93429.0,0.539247]
[1745532148992,0.504019,93430.0,93429.0,0.005]
[1745532149491,0.504019,93430.0,93416.0,0.06823386]
[1745532149492,0.1070019,93417.0,93416.0,0.00107047]
[1745532149797,1.0986019,93417.0,93416.0,0.00107047]
[1745532150087,1.0986019,93417.0,93416.0,0.10807347]
[1745532150283,0.9916,93417.0,93416.0,0.10807347]
[1745532150481,0.9916,93417.0,93416.0,0.11207347]
[1745532151093,0.9916,93417.0,93416.0,0.26037347]
[1745532151888,0.99943797,93417.0,93416.0,1.22294347]
[1745532152089,0.99943797,93417.0,93416.0,1.36494347]
[1745532152292,0.99943797,93417.0,93416.0,1.53694347]
[1745532152492,0.99943797,93417.0,93416.0,1.53894347]
[1745532155092,0.99943797,93417.0,93416.0,1.00363347]
[1745532156093,0.99943797,93417.0,93416.0,0.83163347]
[1745532156990,0.99943797,93417.0,93416.0,0.89843347]
[1745532159202,0.63863797,93417.0,93416.0,1.07043347]
[1745532160307,0.63863797,93417.0,93416.0,0.89843347]
[1745532161198,0.63863797,93417.0,93416.0,1.07043347]
[1745532162001,0.63863797,93417.0,93416.0,1.00363347]
[1745532162704,0.63863797,93417.0,93416.0,1.07043347]
[1745532162900,0.63863797,93417.0,93416.0,0.64317347]
[1745532163099,0.63863797,93417.0,93416.0,1.07043347]
[1745532163805,0.27783797,93417.0,93416.0,1.60574347]
[1745532166904,0.00028,93423.0,93416.0,1.60574347]
[1745532167106,0.07028,93423.0,93422.0,1.0695662]
[1745532167304,0.31028,93423.0,93422.0,1.0695662]
[1745532167505,0.31,93423.0,93422.0,1.0695662]
[1745532167698,0.31,93423.0,93422.0,1.3566662]
[1745532168205,0.31,93423.0,93422.0,1.5286662]
[1745532169207,0.31,93423.0,93422.0,1.5296662]
[1745532169511,0.31,93423.0,93422.0,1.5306662]
[1745532171604,0.6708,93423.0,93422.0,1.5306662]
[1745532174107,0.31,93423.0,93422.0,1.5306662]
[1745532178015,0.31,93423.0,93422.0,0.4242962]
[1745532178214,0.31,93423.0,93422.0,0.2522962]
[1745532178613,0.461,93423.0,93422.0,0.2522962]
[1745532180106,0.461,93423.0,93422.0,0.4242962]
[1745532180817,0.461,93423.0,93422.0,0.39858465]
[1745532182320,0.461,93423.0,93422.0,0.22658465]
[1745532184519,0.461,93423.0,93422.0,0.002]
[1745532184718,0.0534981,93422.0,93416.0,0.06787047]
[1745532184924,0.3608,93417.0,93416.0,0.17487347]
[1745532185125,0.6508,93417.0,93416.0,0.17487347]
[1745532186126,0.6508,93417.0,93416.0,0.77413347]
[1745532186516,0.6508,93417.0,93416.0,1.08853347]
[1745532186835,0.65865665,93417.0,93412.0,0.0668]
[1745532187024,0.65865665,93417.0,93416.0,0.109003]
[1745532187224,0.65865665,93417.0,93416.0,0.536263]
[1745532187430,0.65865665,93417.0,93416.0,0.111003]
[1745532187931,0.65865665,93417.0,93416.0,0.418903]
[1745532188314,0.65865665,93417.0,93416.0,0.590903]
[1745532189329,0.65865665,93417.0,93416.0,1.5400805]
[1745532190015,0.65865665,93417.0,93416.0,0.5775105]
[1745532190321,0.65865665,93417.0,93416.0,1.6068405]
[1745532192120,0.00028,93429.0,93428.0,0.1069893]
[1745532192319,0.27028,93429.0,93428.0,1.0695593]
[1745532192523,0.27,93429.0,93428.0,1.0695593]
[1745532192918,0.27,93429.0,93428.0,1.3817593]
[1745532193121,0.271,93429.0,93428.0,1.5537593]
[1745532193933,0.272,93429.0,93428.0,1.5537593]
[1745532195430,0.27,93429.0,93428.0,1.5537593]
[1745532195631,0.272,93429.0,93428.0,1.5537593]
[1745532196227,0.271,93429.0,93428.0,1.5537593]
[1745532197136,0.27,93429.0,93428.0,1.5537593]
[1745532197336,0.27,93429.0,93428.0,0.5911893]
[1745532197530,0.4237,93429.0,93428.0,0.5911893]
[1745532198239,0.27,93429.0,93428.0,1.3817593]
[1745532198630,0.271,93429.0,93428.0,1.3817593]
[1745532198835,0.4257,93429.0,93428.0,0.4191893]
[1745532199236,0.4257,93429.0,93428.0,0.5911893]
[1745532199941,0.4247,93429.0,93428.0,0.5911893]
[1745532200239,0.4257,93429.0,93428.0,0.5911893]
[1745532202030,0.4257,93429.0,93428.0,0.3295]
[1745532202239,0.4257,93429.0,93428.0,0.2644893]
[1745532203636,0.4257,93429.0,93428.0,0.3312493]
[1745532204141,0.532732,93429.0,93417.0,0.148]
[1745532204343,0.4257,93429.0,93428.0,0.1069893]
[1745532204544,0.7865,93429.0,93428.0,0.1069893]
[1745532204741,0.7865,93429.0,93425.0,0.0534962]
[1745532204742,1.143532,93429.0,93423.0,0.06676]
[1745532204940,0.1069949,93425.0,93424.0,0.1069927]
[1745532205246,0.29,93425.0,93424.0,0.1069927]
[1745532205445,0.8021327,93425.0,93424.0,0.1069927]
[1745532206138,0.9741327,93425.0,93424.0,0.1069927]
[1745532207148,0.8021327,93425.0,93424.0,0.1069927]
[1745532209547,0.69514,93425.0,93424.0,0.1069927]
[1745532209747,0.8021327,93425.0,93424.0,0.1069927]
[1745532210053,0.69514,93425.0,93424.0,0.1069927]
[1745532210645,0.8021327,93425.0,93424.0,0.1069927]
[1745532211054,0.69514,93425.0,93424.0,0.1069927]
[1745532211254,0.8021327,93425.0,93424.0,0.1069927]
[1745532212053,0.69514,93425.0,93424.0,0.1069927]
[1745532212254,0.8021327,93425.0,93424.0,0.1069927]
[1745532212951,0.69514,93425.0,93424.0,0.1069927]
[1745532213257,0.4383,93425.0,93424.0,0.5342527]
[1745532213458,0.4383,93425.0,93424.0,0.6792527]
[1745532213654,0.1070088,93411.0,93400.0,0.1]
[1745532213852,0.6508,93411.0,93410.0,0.1737676]
[1745532214053,0.6508,93411.0,93410.0,0.6010276]
[1745532214652,0.6508,93411.0,93410.0,0.61180411]
[1745532214950,0.6508,93411.0,93410.0,0.61580411]
[1745532215259,0.7935,93411.0,93410.0,0.61580411]
[1745532215656,0.4327,93411.0,93410.0,1.29491411]
[1745532215855,0.4327,93411.0,93410.0,1.29791411]
[1745532216052,0.29,93411.0,93410.0,1.29791411]
[1745532216360,0.29,93411.0,93410.0,1.46991411]
[1745532218762,0.29,93411.0,93410.0,1.57697011]
[1745532219663,0.29,93411.0,93410.0,1.14971011]
[1745532220159,0.29,93411.0,93410.0,1.04265411]
[1745532220562,0.29,93411.0,93410.0,0.97589411]
[1745532220957,0.6508,93411.0,93410.0,0.3228]
[1745532221154,0.6508,93411.0,93410.0,0.3245699]
[1745532222559,0.6508,93411.0,93410.0,0.2578099]
[1745532222858,0.6508,93411.0,93410.0,0.87080482]
[1745532223061,0.6508,93411.0,93410.0,1.04280482]
[1745532223264,0.29,93411.0,93410.0,1.04280482]
[1745532224762,0.29,93411.0,93410.0,1.47006482]
[1745532225259,0.00805339,93417.0,93413.0,0.96257]
[1745532225460,0.08,93417.0,93416.0,1.069573]
[1745532225659,0.3608,93419.0,93418.0,0.1070007]
[1745532225870,0.6708,93419.0,93418.0,1.0695707]
[1745532226260,0.6708,93419.0,93418.0,1.5382707]
[1745532226967,0.6708,93419.0,93418.0,1.5392707]
[1745532227169,0.6708,93419.0,93418.0,1.5412707]
[1745532228769,0.6708,93419.0,93418.0,1.6080307]
[1745532237479,0.6708,93419.0,93418.0,1.5412707]
[1745532237679,0.7777996,93419.0,93418.0,0.175]
[1745532237883,0.6708,93419.0,93418.0,0.2820007]
[1745532238175,0.7777996,93419.0,93418.0,0.1100007]
[1745532238381,0.6708,93419.0,93418.0,0.1100007]
[1745532238569,0.9602,93419.0,93418.0,0.1100007]
[1745532240284,0.8139,93419.0,93418.0,1.0725707]
[1745532240586,0.31,93419.0,93418.0,1.0725707]
[1745532240792,0.3608,93434.0,93433.0,0.1069836]
[1745532240987,0.6208,93434.0,93433.0,0.1069836]
[1745532241188,0.06360712,93434.0,93433.0,1.3083136]
[1745532241393,0.1403,93445.0,93444.0,0.106971]
[1745532241687,0.4203,93445.0,93444.0,0.600991]
[1745532241886,0.4203,93445.0,93444.0,0.173731]
[1745532242291,0.4203,93445.0,93444.0,0.641431]
[1745532242489,0.4243,93445.0,93444.0,0.641431]
[1745532242690,0.4293,93445.0,93444.0,0.641431]
[1745532242989,0.4253,93445.0,93444.0,0.641431]
[1745532243290,0.4273,93445.0,93444.0,0.641431]
[1745532243989,0.4273,93445.0,93444.0,0.345731]
[1745532244191,0.5342698,93445.0,93444.0,0.106971]
[1745532244387,0.4223,93445.0,93444.0,0.173731]
[1745532244588,0.5292698,93445.0,93444.0,0.106971]
[1745532244795,0.5312698,93445.0,93444.0,0.173731]
[1745532245087,0.4243,93445.0,93444.0,0.173731]
[1745532245486,0.6831698,93445.0,93444.0,0.173731]
[1745532245786,0.6841698,93445.0,93444.0,0.173731]
[1745532245989,0.6851698,93445.0,93444.0,0.173731]
[1745532246195,0.5752,93445.0,93444.0,0.173731]
[1745532246384,0.5792,93445.0,93444.0,0.173731]
[1745532246797,0.94,93445.0,93444.0,0.173731]
[1745532247087,0.7881,93445.0,93444.0,0.173731]
[1745532247695,0.7891,93445.0,93444.0,0.173731]
[1745532247894,0.7891,93445.0,93444.0,0.464131]
[1745532248393,0.7851,93445.0,93444.0,0.464131]
[1745532248593,0.7871,93445.0,93444.0,0.464131]
[1745532248893,0.7851,93445.0,93444.0,0.464131]
[1745532249684,0.284,93445.0,93444.0,1.426701]
[1745532249988,0.284,93445.0,93444.0,1.359941]
[1745532250190,0.284,93445.0,93444.0,1.598701]
[1745532250889,0.4359,93445.0,93444.0,1.598701]
[1745532252487,0.4339,93445.0,93444.0,1.598701]
[1745532252694,0.4359,93445.0,93444.0,1.598701]
[1745532255298,0.5428698,93445.0,93444.0,0.345731]
[1745532255694,0.6913698,93445.0,93444.0,0.345731]
[1745532256088,0.5844,93445.0,93444.0,0.345731]
[1745532256297,0.5844,93445.0,93444.0,0.173731]
[1745532256783,0.5844,93445.0,93444.0,0.471331]
[1745532258594,0.284,93445.0,93444.0,1.433901]
[1745532259189,0.284,93445.0,93444.0,1.605901]
[1745532259902,1.284,93445.0,93444.0,1.605901]
[1745532260197,1.282,93445.0,93444.0,1.539141]
[1745532260500,1.284,93445.0,93444.0,1.605901]
[1745532261098,1.281,93445.0,93444.0,1.605901]
[1745532261400,1.283,93445.0,93444.0,1.605901]
[1745532261998,1.282,93445.0,93444.0,1.605901]
[1745532263498,1.6428,93445.0,93444.0,1.605901]
[1745532268906,1.282,93445.0,93444.0,1.605901]
[1745532270805,1.281,93445.0,93444.0,1.605901]
[1745532271197,1.282,93445.0,93444.0,1.605901]
[1745532271399,1.281,93445.0,93444.0,1.605901]
[1745532271602,1.282,93445.0,93444.0,1.605901]
[1745532272206,1.6428,93445.0,93444.0,1.605901]
[1745532272403,1.282,93445.0,93444.0,1.43217]
[1745532272606,1.282,93445.0,93444.0,1.605901]
[1745532272797,1.6428,93445.0,93444.0,1.605901]
[1745532273502,1.282,93445.0,93444.0,1.605901]
[1745532274107,1.6428,93445.0,93444.0,1.605901]
[1745532274502,1.6418,93445.0,93444.0,1.605901]
[1745532274703,1.6428,93445.0,93444.0,1.605901]
[1745532275002,1.6418,93445.0,93444.0,1.605901]
[1745532275204,1.6428,93445.0,93444.0,1.605901]
[1745532275705,1.6438,93445.0,93444.0,1.605901]
[1745532276096,1.6448,93445.0,93444.0,1.605901]
[1745532277203,1.6418,93445.0,93444.0,1.605901]
[1745532277407,1.282,93445.0,93444.0,1.605901]
[1745532277600,1.282,93445.0,93444.0,1.712917]
[1745532278000,1.2317683,93445.0,93444.0,1.962917]
[1745532278896,0.92974572,93445.0,93444.0,1.898157]
[1745532279211,1e-07,93447.0,93446.0,0.49234259]
[1745532279396,0.00810247,93464.0,93463.0,0.1069492]
[1745532279602,0.29,93464.0,93463.0,0.55908309]
[1745532279800,0.29,93464.0,93463.0,0.85848309]
[1745532280003,0.29807585,93464.0,93463.0,1.32627509]
[1745532280203,0.29807585,93464.0,93463.0,1.49827509]
[1745532280618,0.29807585,93464.0,93463.0,1.50885176]
[1745532281513,0.29907585,93464.0,93463.0,1.50885176]
[1745532281908,0.08200765,93464.0,93463.0,1.50885176]
[1745532282101,0.00140404,93464.0,93463.0,1.50885176]
[1745532282306,0.02525124,93464.0,93463.0,1.50885176]
[1745532282615,0.38,93483.0,93476.0,0.1069343]
[1745532282815,0.3011,93477.0,93476.0,0.55914819]
[1745532283110,0.3011,93477.0,93476.0,0.73114819]
[1745532283506,0.3011,93477.0,93476.0,1.02794819]
[1745532284113,0.3041,93477.0,93476.0,0.96110819]
[1745532284312,0.31510918,93477.0,93476.0,1.02790819]
[1745532293622,0.31510918,93477.0,93476.0,1.13488819]
[1745532293817,0.19087648,93477.0,93476.0,1.13488819]
[1745532294118,0.23400918,93477.0,93476.0,1.13488819]
[1745532299525,0.23400918,93477.0,93476.0,0.7495143]
[1745532302118,0.23100918,93477.0,93476.0,0.7495143]
[1745532302325,0.152,93494.0,93493.0,0.1069149]